Workbook

Sheet Table
B3: Matches Played | C3: Matches Won | D3: Games Won | E3: Games Lost | F3: Points Won | G3: Points Lost | H3: Points Diff
A4: =Template!B2 -> Star | B4: =COUNT(INDIRECT(CONCATENATE("'",A4,"'!E:E"))) -> 11 | C4: =SUM(INDIRECT(CONCATENATE("'",A4,"'!I:I"))) -> 9 | D4: =SUM(INDIRECT(CONCATENATE("'",A4,"'!E:E"))) -> 42 | E4: =SUM(INDIRECT(CONCATENATE("'",A4,"'!F:F"))) -> 13 | F4: =SUM(INDIRECT(CONCATENATE("'",A4,"'!G:G"))) -> 635 | G4: =SUM(INDIRECT(CONCATENATE("'",A4,"'!H:H"))) -> 375 | H4: =F4-G4 -> 260
A5: =Template!B4 -> Farmers Boy | B5: =COUNT(INDIRECT(CONCATENATE("'",A5,"'!E:E"))) -> 12 | C5: =SUM(INDIRECT(CONCATENATE("'",A5,"'!I:I"))) -> 9 | D5: =SUM(INDIRECT(CONCATENATE("'",A5,"'!E:E"))) -> 36 | E5: =SUM(INDIRECT(CONCATENATE("'",A5,"'!F:F"))) -> 24 | F5: =SUM(INDIRECT(CONCATENATE("'",A5,"'!G:G"))) -> 651 | G5: =SUM(INDIRECT(CONCATENATE("'",A5,"'!H:H"))) -> 540 | H5: =F5-G5 -> 111
A6: =Template!B6 -> Old Bulls Head | B6: =COUNT(INDIRECT(CONCATENATE("'",A6,"'!E:E"))) -> 12 | C6: =SUM(INDIRECT(CONCATENATE("'",A6,"'!I:I"))) -> 6 | D6: =SUM(INDIRECT(CONCATENATE("'",A6,"'!E:E"))) -> 31 | E6: =SUM(INDIRECT(CONCATENATE("'",A6,"'!F:F"))) -> 29 | F6: =SUM(INDIRECT(CONCATENATE("'",A6,"'!G:G"))) -> 585 | G6: =SUM(INDIRECT(CONCATENATE("'",A6,"'!H:H"))) -> 577 | H6: =F6-G6 -> 8
A7: =Template!B5 -> Plough | B7: =COUNT(INDIRECT(CONCATENATE("'",A7,"'!E:E"))) -> 10 | C7: =SUM(INDIRECT(CONCATENATE("'",A7,"'!I:I"))) -> 3 | D7: =SUM(INDIRECT(CONCATENATE("'",A7,"'!E:E"))) -> 19 | E7: =SUM(INDIRECT(CONCATENATE("'",A7,"'!F:F"))) -> 31 | F7: =SUM(INDIRECT(CONCATENATE("'",A7,"'!G:G"))) -> 410 | G7: =SUM(INDIRECT(CONCATENATE("'",A7,"'!H:H"))) -> 552 | H7: =F7-G7 -> -142
A8: =Template!B7 -> Goat | B8: =COUNT(INDIRECT(CONCATENATE("'",A8,"'!E:E"))) -> 11 | C8: =SUM(INDIRECT(CONCATENATE("'",A8,"'!I:I"))) -> 1 | D8: =SUM(INDIRECT(CONCATENATE("'",A8,"'!E:E"))) -> 12 | E8: =SUM(INDIRECT(CONCATENATE("'",A8,"'!F:F"))) -> 43 | F8: =SUM(INDIRECT(CONCATENATE("'",A8,"'!G:G"))) -> 409 | G8: =SUM(INDIRECT(CONCATENATE("'",A8,"'!H:H"))) -> 646 | H8: =F8-G8 -> -237
A9: =Template!B3 -> Bye | B9: =COUNT(INDIRECT(CONCATENATE("'",A9,"'!E:E"))) -> 0 | C9: =SUM(INDIRECT(CONCATENATE("'",A9,"'!I:I"))) -> 0 | D9: =SUM(INDIRECT(CONCATENATE("'",A9,"'!E:E"))) -> 0 | E9: =SUM(INDIRECT(CONCATENATE("'",A9,"'!F:F"))) -> 0 | F9: =SUM(INDIRECT(CONCATENATE("'",A9,"'!G:G"))) -> 0 | G9: =SUM(INDIRECT(CONCATENATE("'",A9,"'!H:H"))) -> 0 | H9: =F9-G9 -> 0

Sheet Star
A2: Team | B2: =Template!B2 -> Star
K3: Check that there are enough points to win the games
A4: Date | B4: Week | C4: Home/Away | D4: Opponent | E4: Games Won | F4: Games lost | G4: Points For | H4: Points Against | I4: Match Won? | J4: Check that input numbers are within range | K4: Home | L4: Away
A5: =Template!B16 -> 30.05.2022 | B5: 1 | C5: Home | D5: =Template!D16 -> Goat | E5: 4 | F5: =IF(E5="","",5-E5) -> 1 | G5: 63 | H5: 31 | I5: =IF(E5="","",IF(E5>2,1,0)) -> 1 | J5: =IF(E5="","",IF(OR(E5<0,E5>5,G5<0,G5>(5*13),H5<0,H5>(5*13)),"Number out of range error","Valid Scores entered")) -> Valid Scores entered | K5: =IF(E5="","",IF((E5*13>G5),"Error in submitting Games Won or Points Home","OK")) -> OK | L5: =IF(E5="","",IF((F5*13>H5),"Error in submitting Games Won or Points Away","OK")) -> OK
A6: =Template!B17 -> 06.06.2022 | B6: =B5+1 -> 2 | C6: Away | D6: =Template!C17 -> Old Bulls Head | E6: =INDIRECT(CONCATENATE("'",$D6,"'!$F6")) -> 4 | F6: 1 | G6: =INDIRECT(CONCATENATE("'",$D6,"'!H6")) -> 57 | H6: =INDIRECT(CONCATENATE("'",$D6,"'!G6")) -> 43 | I6: =IF(E6="","",IF(E6>2,1,0)) -> 1 | J6: =IF(E6="","",IF(OR(E6<0,E6>5,G6<0,G6>(5*13),H6<0,H6>(5*13)),"Number out of range error","Valid Scores entered")) -> Valid Scores entered | K6: =IF(E6="","",IF((E6*13>G6),"Error in submitting Games Won or Points Home","OK")) -> OK | L6: =IF(E6="","",IF((F6*13>H6),"Error in submitting Games Won or Points Away","OK")) -> OK
A7: =Template!B18 -> 13.06.2022 | B7: =B6+1 -> 3 | C7: Home | D7: =Template!D18 -> Plough | E7: 5 | F7: 0 | G7: 65 | H7: 16 | I7: =IF(E7="","",IF(E7>2,1,0)) -> 1 | J7: =IF(E7="","",IF(OR(E7<0,E7>5,G7<0,G7>(5*13),H7<0,H7>(5*13)),"Number out of range error","Valid Scores entered")) -> Valid Scores entered | K7: =IF(E7="","",IF((E7*13>G7),"Error in submitting Games Won or Points Home","OK")) -> OK | L7: OK
A8: =Template!B19 -> 20.06.2022 | B8: 4 | C8: Away | D8: =Template!C19 -> Farmers Boy | E8: =INDIRECT(CONCATENATE("'",$D8,"'!$F8")) -> 1 | F8: 4 | G8: =INDIRECT(CONCATENATE("'",$D8,"'!H8")) -> 40 | H8: =INDIRECT(CONCATENATE("'",$D8,"'!G8")) -> 63 | I8: 0 | J8: Valid Scores entered | K8: OK | L8: OK | M8: Home and Away reversed
A9: =Template!B20 -> 27.06.2022 | B9: 5 | C9: Home | D9: =Template!D20 -> Bye
A10: =Template!B21 -> 04.07.2022 | B10: 6 | C10: Away | D10: =Template!C21 -> Goat | E10: =INDIRECT(CONCATENATE("'",$D10,"'!$F10")) -> 5 | F10: 0 | G10: =INDIRECT(CONCATENATE("'",$D10,"'!H10")) -> 65 | H10: =INDIRECT(CONCATENATE("'",$D10,"'!G10")) -> 27 | I10: 1 | J10: Valid Scores entered | K10: OK | L10: OK
A11: =Template!B22 -> 11.07.2022 | B11: 7 | C11: Home | D11: =Template!D22 -> Old Bulls Head | E11: 4 | F11: 1 | G11: 60 | H11: 26 | I11: 1 | J11: Valid Scores entered | K11: OK | L11: OK
A12: =Template!B23 -> 18.07.2022 | B12: 8 | C12: Away | D12: =Template!C23 -> Plough | E12: =INDIRECT(CONCATENATE("'",$D12,"'!$F12")) -> 4 | F12: 1 | G12: =INDIRECT(CONCATENATE("'",$D12,"'!H12")) -> 59 | H12: =INDIRECT(CONCATENATE("'",$D12,"'!G12")) -> 38 | I12: 1 | J12: Valid Scores entered | K12: OK | L12: OK
A13: =Template!B24 -> 25.07.2022 | B13: 9 | C13: Home | D13: =Template!D24 -> Farmers Boy | E13: 4 | F13: 1 | G13: 57 | H13: 40 | I13: 1 | J13: Valid Scores entered | K13: OK | L13: OK
A14: =Template!B25 -> 01.08.2022 | B14: 10 | C14: Away | D14: =Template!C25 -> Bye | E14: =INDIRECT(CONCATENATE("'",$D14,"'!$F14")) ->  | G14: =INDIRECT(CONCATENATE("'",$D14,"'!H14")) -> 0 | H14: =INDIRECT(CONCATENATE("'",$D14,"'!G14")) -> 0
A15: =Template!B26 -> 08.08.2022 | B15: 11 | C15: Home | D15: Goat | E15: 4 | F15: 1 | G15: 58 | H15: 21 | I15: 1 | J15: Valid Scores entered | K15: OK | L15: OK
A16: =Template!B27 -> 15.08.2022 | B16: 12 | C16: Away | D16: Old Bulls Head | E16: =INDIRECT(CONCATENATE("'",$D16,"'!$F16")) -> 5 | F16: 0 | G16: =INDIRECT(CONCATENATE("'",$D16,"'!H16")) -> 65 | H16: =INDIRECT(CONCATENATE("'",$D16,"'!G16")) -> 31 | I16: 1 | J16: Valid Scores entered | K16: OK | L16: OK
A17: =Template!B28 -> 22.08.2022 | B17: 13 | C17: Home | D17: Plough
A18: =Template!B29 -> 05.09.2022 | B18: 14 | C18: Away | D18: Farmers Boy | E18: =INDIRECT(CONCATENATE("'",$D18,"'!$F18")) -> 2 | F18: 3 | G18: =INDIRECT(CONCATENATE("'",$D18,"'!H18")) -> 46 | H18: =INDIRECT(CONCATENATE("'",$D18,"'!G18")) -> 39 | I18: 0 | J18: Valid Scores entered | K18: OK | L18: OK | M18: Home and Away reversed
A19: =Template!B30 -> 12.09.2022 | B19: 15 | C19: Home | D19: Bye
C23: =CONCATENATE("Home Games:",COUNTIF(C5:C22,"Home")," Away Games:",COUNTIF(C5:C22,"Away")) -> Home Games:8 Away Games:7

Sheet Bye
A2: Team | B2: =Template!B3 -> Bye
K3: Check that there are enough points to win the games
A4: Date | B4: Week | C4: Home/Away | D4: Opponent | E4: Games Won | F4: Games lost | G4: Points For | H4: Points Against | I4: Match Won? | J4: Check that input numbers are within range | K4: Home | L4: Away
A5: =Template!B16 -> 30.05.2022 | B5: 1 | C5: Home | D5: =Template!F16 -> Old Bulls Head | F5: =IF(E5="","",5-E5) ->  | I5: =IF(E5="","",IF(E5>2,1,0)) ->  | J5: =IF(E5="","",IF(OR(E5<0,E5>5,G5<0,G5>(5*13),H5<0,H5>(5*13)),"Number out of range error","Valid Scores entered")) ->  | K5: =IF(E5="","",IF((E5*13>G5),"Error in submitting Games Won or Points Home","OK")) ->  | L5: =IF(E5="","",IF((F5*13>H5),"Error in submitting Games Won or Points Away","OK")) -> 
A6: =Template!B17 -> 06.06.2022 | B6: =B5+1 -> 2 | C6: Away | D6: =Template!E17 -> Plough | E6: =INDIRECT(CONCATENATE("'",$D6,"'!$F6")) ->  | G6: =INDIRECT(CONCATENATE("'",$D6,"'!H6")) -> 0 | H6: =INDIRECT(CONCATENATE("'",$D6,"'!G6")) -> 0 | I6: =IF(E6="","",IF(E6>2,1,0)) ->  | J6: =IF(E6="","",IF(OR(E6<0,E6>5,G6<0,G6>(5*13),H6<0,H6>(5*13)),"Number out of range error","Valid Scores entered")) ->  | K6: =IF(E6="","",IF((E6*13>G6),"Error in submitting Games Won or Points Home","OK")) ->  | L6: =IF(E6="","",IF((F6*13>H6),"Error in submitting Games Won or Points Away","OK")) -> 
A7: =Template!B18 -> 13.06.2022 | B7: =B6+1 -> 3 | C7: Home | D7: =Template!F18 -> Farmers Boy
A8: =Template!B19 -> 20.06.2022 | B8: 4 | C8: Home | D8: =Template!H19 -> Goat
A9: =Template!B20 -> 27.06.2022 | B9: 5 | C9: Away | D9: =Template!C20 -> Star | E9: =INDIRECT(CONCATENATE("'",$D9,"'!$F9")) ->  | G9: =INDIRECT(CONCATENATE("'",$D9,"'!H9")) -> 0 | H9: =INDIRECT(CONCATENATE("'",$D9,"'!G9")) -> 0
A10: =Template!B21 -> 04.07.2022 | B10: 6 | C10: Away | D10: =Template!E21 -> Old Bulls Head | E10: =INDIRECT(CONCATENATE("'",$D10,"'!$F10")) ->  | F10: =IF(E10="","",5-E10) ->  | G10: =INDIRECT(CONCATENATE("'",$D10,"'!H10")) -> 0 | H10: =INDIRECT(CONCATENATE("'",$D10,"'!G10")) -> 0
A11: =Template!B22 -> 11.07.2022 | B11: 7 | C11: Home | D11: =Template!F22 -> Plough
A12: =Template!B23 -> 18.07.2022 | B12: 8 | C12: Away | D12: =Template!E23 -> Farmers Boy | E12: =INDIRECT(CONCATENATE("'",$D12,"'!$F12")) ->  | F12: =IF(E12="","",5-E12) ->  | G12: =INDIRECT(CONCATENATE("'",$D12,"'!H12")) -> 0 | H12: =INDIRECT(CONCATENATE("'",$D12,"'!G12")) -> 0
A13: =Template!B24 -> 25.07.2022 | B13: 9 | C13: Away | D13: =Template!G24 -> Goat | E13: =INDIRECT(CONCATENATE("'",$D13,"'!$F13")) ->  | G13: =INDIRECT(CONCATENATE("'",$D13,"'!H13")) -> 0 | H13: =INDIRECT(CONCATENATE("'",$D13,"'!G13")) -> 0
A14: =Template!B25 -> 01.08.2022 | B14: 10 | C14: Home | D14: =Template!D25 -> Star
A15: =Template!B26 -> 08.08.2022 | B15: 11 | C15: Home | D15: Old Bulls Head
A16: =Template!B27 -> 15.08.2022 | B16: 12 | C16: Away | D16: Plough | E16: =INDIRECT(CONCATENATE("'",$D16,"'!$F16")) ->  | F16: =IF(E16="","",5-E16) ->  | G16: =INDIRECT(CONCATENATE("'",$D16,"'!H16")) -> 0 | H16: =INDIRECT(CONCATENATE("'",$D16,"'!G16")) -> 0
A17: =Template!B28 -> 22.08.2022 | B17: 13 | C17: Home | D17: Farmers Boy
A18: =Template!B29 -> 05.09.2022 | B18: 14 | C18: Home | D18: Goat
A19: =Template!B30 -> 12.09.2022 | B19: 15 | C19: Away | D19: Star | E19: =INDIRECT(CONCATENATE("'",$D19,"'!$F19")) ->  | G19: =INDIRECT(CONCATENATE("'",$D19,"'!H19")) -> 0 | H19: =INDIRECT(CONCATENATE("'",$D19,"'!G19")) -> 0
C23: =CONCATENATE("Home Games:",COUNTIF(C5:C22,"Home")," Away Games:",COUNTIF(C5:C22,"Away")) -> Home Games:8 Away Games:7

Sheet Farmers Boy
A2: Team | B2: =Template!B4 -> Farmers Boy
K3: Check that there are enough points to win the games
A4: Date | B4: Week | C4: Home/Away | D4: Opponent | E4: Games Won | F4: Games lost | G4: Points For | H4: Points Against | I4: Match Won? | J4: Check that input numbers are within range | K4: Home | L4: Away
A5: =Template!B16 -> 30.05.2022 | B5: 1 | C5: Home | D5: =Template!H16 -> Plough | E5: 4 | F5: =IF(E5="","",5-E5) -> 1 | G5: 60 | H5: 42 | I5: =IF(E5="","",IF(E5>2,1,0)) -> 1 | J5: =IF(E5="","",IF(OR(E5<0,E5>5,G5<0,G5>(5*13),H5<0,H5>(5*13)),"Number out of range error","Valid Scores entered")) -> Valid Scores entered | K5: =IF(E5="","",IF((E5*13>G5),"Error in submitting Games Won or Points Home","OK")) -> OK | L5: =IF(E5="","",IF((F5*13>H5),"Error in submitting Games Won or Points Away","OK")) -> OK
A6: =Template!B17 -> 06.06.2022 | B6: =B5+1 -> 2 | C6: Away | D6: =Template!G17 -> Goat | E6: =INDIRECT(CONCATENATE("'",$D6,"'!$F6")) -> 4 | F6: =IF(E6="","",5-E6) -> 1 | G6: =INDIRECT(CONCATENATE("'",$D6,"'!H6")) -> 56 | H6: =INDIRECT(CONCATENATE("'",$D6,"'!G6")) -> 48 | I6: =IF(E6="","",IF(E6>2,1,0)) -> 1 | J6: =IF(E6="","",IF(OR(E6<0,E6>5,G6<0,G6>(5*13),H6<0,H6>(5*13)),"Number out of range error","Valid Scores entered")) -> Valid Scores entered | K6: =IF(E6="","",IF((E6*13>G6),"Error in submitting Games Won or Points Home","OK")) -> OK | L6: =IF(E6="","",IF((F6*13>H6),"Error in submitting Games Won or Points Away","OK")) -> OK
A7: =Template!B18 -> 13.06.2022 | B7: =B6+1 -> 3 | C7: Away | D7: =Template!E18 -> Bye | E7: =INDIRECT(CONCATENATE("'",$D7,"'!$F7")) ->  | F7: =IF(E7="","",5-E7) ->  | G7: =INDIRECT(CONCATENATE("'",$D7,"'!H7")) -> 0 | H7: =INDIRECT(CONCATENATE("'",$D7,"'!G7")) -> 0
A8: =Template!B19 -> 20.06.2022 | B8: 4 | C8: Home | D8: =Template!D19 -> Star | E8: 4 | F8: 1 | G8: 63 | H8: 40 | I8: 1 | J8: Valid Scores entered | K8: OK | L8: OK | M8: Home and Away reversed
A9: =Template!B20 -> 27.06.2022 | B9: 5 | C9: Away | D9: =Template!E20 -> Old Bulls Head | E9: =INDIRECT(CONCATENATE("'",$D9,"'!$F9")) -> 1 | F9: 4 | G9: =INDIRECT(CONCATENATE("'",$D9,"'!H9")) -> 45 | H9: =INDIRECT(CONCATENATE("'",$D9,"'!G9")) -> 59 | I9: 0 | J9: Valid Scores entered | K9: OK | L9: OK
A10: =Template!B21 -> 04.07.2022 | B10: 6 | C10: Away | D10: =Template!G21 -> Plough | E10: =INDIRECT(CONCATENATE("'",$D10,"'!$F10")) -> 3 | F10: =IF(E10="","",5-E10) -> 2 | G10: =INDIRECT(CONCATENATE("'",$D10,"'!H10")) -> 61 | H10: =INDIRECT(CONCATENATE("'",$D10,"'!G10")) -> 36 | I10: 1 | J10: Valid Scores entered | K10: OK | L10: OK
A11: =Template!B22 -> 11.07.2022 | B11: 7 | C11: Home | D11: =Template!H22 -> Goat | E11: 4 | F11: =IF(E11="","",5-E11) -> 1 | G11: 64 | H11: 34 | I11: =IF(E11="","",IF(E11>2,1,0)) -> 1 | J11: =IF(E11="","",IF(OR(E11<0,E11>5,G11<0,G11>(5*13),H11<0,H11>(5*13)),"Number out of range error","Valid Scores entered")) -> Valid Scores entered | K11: =IF(E11="","",IF((E11*13>G11),"Error in submitting Games Won or Points Home","OK")) -> OK | L11: =IF(E11="","",IF((F11*13>H11),"Error in submitting Games Won or Points Away","OK")) -> OK
A12: =Template!B23 -> 18.07.2022 | B12: 8 | C12: Home | D12: =Template!F23 -> Bye
A13: =Template!B24 -> 25.07.2022 | B13: 9 | C13: Away | D13: =Template!C24 -> Star | E13: =INDIRECT(CONCATENATE("'",$D13,"'!$F13")) -> 1 | F13: 4 | G13: =INDIRECT(CONCATENATE("'",$D13,"'!H13")) -> 40 | H13: =INDIRECT(CONCATENATE("'",$D13,"'!G13")) -> 57 | I13: 0 | J13: Valid Scores entered | K13: OK | L13: OK
A14: =Template!B25 -> 01.08.2022 | B14: 10 | C14: Home | D14: =Template!F25 -> Old Bulls Head | E14: 4 | F14: =IF(E14="","",5-E14) -> 1 | G14: 58 | H14: 31 | I14: =IF(E14="","",IF(E14>2,1,0)) -> 1 | J14: =IF(E14="","",IF(OR(E14<0,E14>5,G14<0,G14>(5*13),H14<0,H14>(5*13)),"Number out of range error","Valid Scores entered")) -> Valid Scores entered | K14: =IF(E14="","",IF((E14*13>G14),"Error in submitting Games Won or Points Home","OK")) -> OK | L14: =IF(E14="","",IF((F14*13>H14),"Error in submitting Games Won or Points Away","OK")) -> OK
A15: =Template!B26 -> 08.08.2022 | B15: 11 | C15: Home | D15: Plough | E15: 4 | F15: 1 | G15: 64 | H15: 34 | I15: 1 | J15: Valid Scores entered | K15: OK | L15: OK
A16: =Template!B27 -> 15.08.2022 | B16: 12 | C16: Away | D16: Goat | E16: =INDIRECT(CONCATENATE("'",$D16,"'!$F16")) -> 3 | F16: 2 | G16: =INDIRECT(CONCATENATE("'",$D16,"'!H16")) -> 50 | H16: =INDIRECT(CONCATENATE("'",$D16,"'!G16")) -> 57 | I16: 1 | J16: Valid Scores entered | K16: OK | L16: OK
A17: =Template!B28 -> 22.08.2022 | B17: 13 | C17: Away | D17: Bye | E17: =INDIRECT(CONCATENATE("'",$D17,"'!$F17")) ->  | F17: =IF(E17="","",5-E17) ->  | G17: =INDIRECT(CONCATENATE("'",$D17,"'!H17")) -> 0 | H17: =INDIRECT(CONCATENATE("'",$D17,"'!G17")) -> 0
A18: =Template!B29 -> 05.09.2022 | B18: 14 | C18: Home | D18: Star | E18: 3 | F18: 2 | G18: 39 | H18: 46 | I18: 1 | J18: Valid Scores entered | K18: OK | L18: OK | M18: Home and Away reversed
A19: =Template!B30 -> 12.09.2022 | B19: 15 | C19: Away | D19: Old Bulls Head | E19: =INDIRECT(CONCATENATE("'",$D19,"'!$F19")) -> 1 | F19: 4 | G19: =INDIRECT(CONCATENATE("'",$D19,"'!H19")) -> 51 | H19: =INDIRECT(CONCATENATE("'",$D19,"'!G19")) -> 56 | I19: 0 | J19: Valid Scores entered | K19: OK | L19: OK
C23: =CONCATENATE("Home Games:",COUNTIF(C5:C22,"Home")," Away Games:",COUNTIF(C5:C22,"Away")) -> Home Games:7 Away Games:8

Sheet Plough
A2: Team | B2: =Template!B5 -> Plough
K3: Check that there are enough points to win the games
A4: Date | B4: Week | C4: Home/Away | D4: Opponent | E4: Games Won | F4: Games lost | G4: Points For | H4: Points Against | I4: Match Won? | J4: Check that input numbers are within range | K4: Home | L4: Away
A5: =Template!B16 -> 30.05.2022 | B5: 1 | C5: Away | D5: =Template!G16 -> Farmers Boy | E5: =INDIRECT(CONCATENATE("'",$D5,"'!$F5")) -> 1 | F5: =IF(E5="","",5-E5) -> 4 | G5: =INDIRECT(CONCATENATE("'",$D5,"'!H5")) -> 42 | H5: =INDIRECT(CONCATENATE("'",$D5,"'!G5")) -> 60 | I5: =IF(E5="","",IF(E5>2,1,0)) -> 0 | J5: =IF(E5="","",IF(OR(E5<0,E5>5,G5<0,G5>(5*13),H5<0,H5>(5*13)),"Number out of range error","Valid Scores entered")) -> Valid Scores entered | K5: =IF(E5="","",IF((E5*13>G5),"Error in submitting Games Won or Points Home","OK")) -> OK | L5: =IF(E5="","",IF((F5*13>H5),"Error in submitting Games Won or Points Away","OK")) -> OK
A6: =Template!B17 -> 06.06.2022 | B6: =B5+1 -> 2 | C6: Home | D6: =Template!F17 -> Bye | F6: =IF(E6="","",5-E6) ->  | I6: =IF(E6="","",IF(E6>2,1,0)) ->  | J6: =IF(E6="","",IF(OR(E6<0,E6>5,G6<0,G6>(5*13),H6<0,H6>(5*13)),"Number out of range error","Valid Scores entered")) ->  | K6: =IF(E6="","",IF((E6*13>G6),"Error in submitting Games Won or Points Home","OK")) ->  | L6: =IF(E6="","",IF((F6*13>H6),"Error in submitting Games Won or Points Away","OK")) -> 
A7: =Template!B18 -> 13.06.2022 | B7: =B6+1 -> 3 | C7: Away | D7: =Template!C18 -> Star | E7: =INDIRECT(CONCATENATE("'",$D7,"'!$F7")) -> 0 | F7: 5 | G7: =INDIRECT(CONCATENATE("'",$D7,"'!H7")) -> 16 | H7: =INDIRECT(CONCATENATE("'",$D7,"'!G7")) -> 65 | I7: 0 | J7: Valid Scores entered | K7: OK | L7: OK
A8: =Template!B19 -> 20.06.2022 | B8: 4 | C8: Home | D8: =Template!F19 -> Old Bulls Head | E8: 4 | F8: 1 | G8: 57 | H8: 43 | I8: 1 | J8: Valid Scores entered | K8: OK | L8: OK
A9: =Template!B20 -> 27.06.2022 | B9: 5 | C9: Away | D9: =Template!G20 -> Goat | E9: =INDIRECT(CONCATENATE("'",$D9,"'!$F9")) -> 3 | F9: =IF(E9="","",5-E9) -> 2 | G9: =INDIRECT(CONCATENATE("'",$D9,"'!H9")) -> 50 | H9: =INDIRECT(CONCATENATE("'",$D9,"'!G9")) -> 47 | I9: 1 | J9: Valid Scores entered | K9: OK | L9: OK
A10: =Template!B21 -> 04.07.2022 | B10: 6 | C10: Home | D10: =Template!H21 -> Farmers Boy | E10: 2 | F10: 3 | G10: 36 | H10: 61 | I10: 0 | J10: Valid Scores entered | K10: OK | L10: OK
A11: =Template!B22 -> 11.07.2022 | B11: 7 | C11: Away | D11: =Template!E22 -> Bye | E11: =INDIRECT(CONCATENATE("'",$D11,"'!$F11")) ->  | G11: =INDIRECT(CONCATENATE("'",$D11,"'!H11")) -> 0 | H11: =INDIRECT(CONCATENATE("'",$D11,"'!G11")) -> 0
A12: =Template!B23 -> 18.07.2022 | B12: 8 | C12: Home | D12: =Template!D23 -> Star | E12: 1 | F12: 4 | G12: 38 | H12: 59 | I12: 0 | J12: Valid Scores entered | K12: OK | L12: OK
A13: =Template!B24 -> 25.07.2022 | B13: 9 | C13: Away | D13: =Template!E24 -> Old Bulls Head | E13: =INDIRECT(CONCATENATE("'",$D13,"'!$F13")) -> 3 | F13: =IF(E13="","",5-E13) -> 2 | G13: =INDIRECT(CONCATENATE("'",$D13,"'!H13")) -> 42 | H13: =INDIRECT(CONCATENATE("'",$D13,"'!G13")) -> 52 | I13: 1 | J13: Valid Scores entered | K13: OK | L13: OK
A14: =Template!B25 -> 01.08.2022 | B14: 10 | C14: Home | D14: =Template!H25 -> Goat
A15: =Template!B26 -> 08.08.2022 | B15: 11 | C15: Away | D15: Farmers Boy | E15: =INDIRECT(CONCATENATE("'",$D15,"'!$F15")) -> 1 | F15: 4 | G15: =INDIRECT(CONCATENATE("'",$D15,"'!H15")) -> 34 | H15: =INDIRECT(CONCATENATE("'",$D15,"'!G15")) -> 64 | I15: 0 | J15: Valid Scores entered | K15: OK | L15: OK
A16: =Template!B27 -> 15.08.2022 | B16: 12 | C16: Home | D16: Bye
A17: =Template!B28 -> 22.08.2022 | B17: 13 | C17: Away | D17: Star | E17: =INDIRECT(CONCATENATE("'",$D17,"'!$F17")) ->  | F17: =IF(E17="","",5-E17) ->  | G17: =INDIRECT(CONCATENATE("'",$D17,"'!H17")) -> 0 | H17: =INDIRECT(CONCATENATE("'",$D17,"'!G17")) -> 0
A18: =Template!B29 -> 05.09.2022 | B18: 14 | C18: Home | D18: Old Bulls Head | E18: 2 | F18: 3 | G18: 47 | H18: 52 | I18: 0 | J18: Valid Scores entered | K18: OK | L18: OK
A19: =Template!B30 -> 12.09.2022 | B19: 15 | C19: Away | D19: Goat | E19: =INDIRECT(CONCATENATE("'",$D19,"'!$F19")) -> 2 | F19: 3 | G19: =INDIRECT(CONCATENATE("'",$D19,"'!H19")) -> 48 | H19: =INDIRECT(CONCATENATE("'",$D19,"'!G19")) -> 49 | I19: 0 | J19: Valid Scores entered | K19: OK | L19: OK
C23: =CONCATENATE("Home Games:",COUNTIF(C5:C22,"Home")," Away Games:",COUNTIF(C5:C22,"Away")) -> Home Games:7 Away Games:8

Sheet Old Bulls Head
A2: Team | B2: =Template!B6 -> Old Bulls Head
K3: Check that there are enough points to win the games
A4: Date | B4: Week | C4: Home/Away | D4: Opponent | E4: Games Won | F4: Games lost | G4: Points For | H4: Points Against | I4: Match Won? | J4: Check that input numbers are within range | K4: Home | L4: Away
A5: =Template!B16 -> 30.05.2022 | B5: 1 | C5: Away | D5: =Template!E16 -> Bye | E5: =INDIRECT(CONCATENATE("'",$D5,"'!$F5")) ->  | F5: =IF(E5="","",5-E5) ->  | G5: =INDIRECT(CONCATENATE("'",$D5,"'!H5")) -> 0 | H5: =INDIRECT(CONCATENATE("'",$D5,"'!G5")) -> 0 | I5: =IF(E5="","",IF(E5>2,1,0)) ->  | J5: =IF(E5="","",IF(OR(E5<0,E5>5,G5<0,G5>(5*13),H5<0,H5>(5*13)),"Number out of range error","Valid Scores entered")) ->  | K5: =IF(E5="","",IF((E5*13>G5),"Error in submitting Games Won or Points Home","OK")) ->  | L5: =IF(E5="","",IF((F5*13>H5),"Error in submitting Games Won or Points Away","OK")) -> 
A6: =Template!B17 -> 06.06.2022 | B6: =B5+1 -> 2 | C6: Home | D6: =Template!D17 -> Star | E6: 1 | F6: =IF(E6="","",5-E6) -> 4 | G6: 43 | H6: 57 | I6: =IF(E6="","",IF(E6>2,1,0)) -> 0 | J6: =IF(E6="","",IF(OR(E6<0,E6>5,G6<0,G6>(5*13),H6<0,H6>(5*13)),"Number out of range error","Valid Scores entered")) -> Valid Scores entered | K6: =IF(E6="","",IF((E6*13>G6),"Error in submitting Games Won or Points Home","OK")) -> OK | L6: =IF(E6="","",IF((F6*13>H6),"Error in submitting Games Won or Points Away","OK")) -> OK
A7: =Template!B18 -> 13.06.2022 | B7: =B6+1 -> 3 | C7: Away | D7: =Template!G18 -> Goat | E7: =INDIRECT(CONCATENATE("'",$D7,"'!$F7")) -> 5 | F7: 0 | G7: =INDIRECT(CONCATENATE("'",$D7,"'!H7")) -> 65 | H7: =INDIRECT(CONCATENATE("'",$D7,"'!G7")) -> 37 | I7: 1 | J7: Valid Scores entered | K7: OK | L7: OK
A8: =Template!B19 -> 20.06.2022 | B8: 4 | C8: Away | D8: =Template!E19 -> Plough | E8: =INDIRECT(CONCATENATE("'",$D8,"'!$F8")) -> 1 | F8: =IF(E8="","",5-E8) -> 4 | G8: =INDIRECT(CONCATENATE("'",$D8,"'!H8")) -> 43 | H8: =INDIRECT(CONCATENATE("'",$D8,"'!G8")) -> 57 | I8: 0 | J8: Valid Scores entered | K8: OK | L8: OK
A9: =Template!B20 -> 27.06.2022 | B9: 5 | C9: Home | D9: =Template!F20 -> Farmers Boy | E9: 4 | F9: 1 | G9: 59 | H9: 45 | I9: 1 | J9: Valid Scores entered | K9: OK | L9: OK
A10: =Template!B21 -> 04.07.2022 | B10: 6 | C10: Home | D10: =Template!F21 -> Bye
A11: =Template!B22 -> 11.07.2022 | B11: 7 | C11: Away | D11: =Template!C22 -> Star | E11: =INDIRECT(CONCATENATE("'",$D11,"'!$F11")) -> 1 | F11: 4 | G11: =INDIRECT(CONCATENATE("'",$D11,"'!H11")) -> 26 | H11: =INDIRECT(CONCATENATE("'",$D11,"'!G11")) -> 60 | I11: 0 | J11: Valid Scores entered | K11: OK | L11: OK
A12: =Template!B23 -> 18.07.2022 | B12: 8 | C12: Home | D12: =Template!H23 -> Goat | E12: 5 | F12: 0 | G12: 65 | H12: 25 | I12: 1 | J12: Valid Scores entered | K12: OK | L12: OK
A13: =Template!B24 -> 25.07.2022 | B13: 9 | C13: Home | D13: =Template!F24 -> Plough | E13: 2 | F13: 3 | G13: 52 | H13: 42 | I13: 0 | J13: Valid Scores entered | K13: OK | L13: OK
A14: =Template!B25 -> 01.08.2022 | B14: 10 | C14: Away | D14: =Template!E25 -> Farmers Boy | E14: =INDIRECT(CONCATENATE("'",$D14,"'!$F14")) -> 1 | F14: 4 | G14: =INDIRECT(CONCATENATE("'",$D14,"'!H14")) -> 31 | H14: =INDIRECT(CONCATENATE("'",$D14,"'!G14")) -> 58 | I14: 0 | J14: Valid Scores entered | K14: OK | L14: OK
A15: =Template!B26 -> 08.08.2022 | B15: 11 | C15: Away | D15: Bye | E15: =INDIRECT(CONCATENATE("'",$D15,"'!$F15")) ->  | F15: =IF(E15="","",5-E15) ->  | G15: =INDIRECT(CONCATENATE("'",$D15,"'!H15")) -> 0 | H15: =INDIRECT(CONCATENATE("'",$D15,"'!G15")) -> 0
A16: =Template!B27 -> 15.08.2022 | B16: 12 | C16: Home | D16: Star | E16: 0 | F16: 5 | G16: 31 | H16: 65 | I16: 0 | J16: Valid Scores entered | K16: OK | L16: OK
A17: =Template!B28 -> 22.08.2022 | B17: 13 | C17: Away | D17: Goat | E17: =INDIRECT(CONCATENATE("'",$D17,"'!$F17")) -> 4 | F17: 1 | G17: =INDIRECT(CONCATENATE("'",$D17,"'!H17")) -> 62 | H17: =INDIRECT(CONCATENATE("'",$D17,"'!G17")) -> 33 | I17: 1 | J17: Valid Scores entered | K17: OK | L17: OK
A18: =Template!B29 -> 05.09.2022 | B18: 14 | C18: Away | D18: Plough | E18: =INDIRECT(CONCATENATE("'",$D18,"'!$F18")) -> 3 | F18: =IF(E18="","",5-E18) -> 2 | G18: =INDIRECT(CONCATENATE("'",$D18,"'!H18")) -> 52 | H18: =INDIRECT(CONCATENATE("'",$D18,"'!G18")) -> 47 | I18: 1 | J18: Valid Scores entered | K18: OK | L18: OK
A19: =Template!B30 -> 12.09.2022 | B19: 15 | C19: Home | D19: Farmers Boy | E19: 4 | F19: 1 | G19: 56 | H19: 51 | I19: 1 | J19: Valid Scores entered | K19: OK | L19: OK
C23: =CONCATENATE("Home Games:",COUNTIF(C5:C22,"Home")," Away Games:",COUNTIF(C5:C22,"Away")) -> Home Games:7 Away Games:8

Sheet Goat
A2: Team | B2: =Template!B7 -> Goat
K3: Check that there are enough points to win the games
A4: Date | B4: Week | C4: Home/Away | D4: Opponent | E4: Games Won | F4: Games lost | G4: Points For | H4: Points Against | I4: Match Won? | J4: Check that input numbers are within range | K4: Home | L4: Away
A5: =Template!B16 -> 30.05.2022 | B5: 1 | C5: Away | D5: =Template!C16 -> Star | E5: =INDIRECT(CONCATENATE("'",$D5,"'!$F5")) -> 1 | F5: =IF(E5="","",5-E5) -> 4 | G5: =INDIRECT(CONCATENATE("'",$D5,"'!H5")) -> 31 | H5: =INDIRECT(CONCATENATE("'",$D5,"'!G5")) -> 63 | I5: =IF(E5="","",IF(E5>2,1,0)) -> 0 | J5: =IF(E5="","",IF(OR(E5<0,E5>5,G5<0,G5>(5*13),H5<0,H5>(5*13)),"Number out of range error","Valid Scores entered")) -> Valid Scores entered | K5: =IF(E5="","",IF((E5*13>G5),"Error in submitting Games Won or Points Home","OK")) -> OK | L5: =IF(E5="","",IF((F5*13>H5),"Error in submitting Games Won or Points Away","OK")) -> OK
A6: =Template!B17 -> 06.06.2022 | B6: =B5+1 -> 2 | C6: Home | D6: =Template!H17 -> Farmers Boy | E6: 1 | F6: 4 | G6: 48 | H6: 56 | I6: =IF(E6="","",IF(E6>2,1,0)) -> 0 | J6: =IF(E6="","",IF(OR(E6<0,E6>5,G6<0,G6>(5*13),H6<0,H6>(5*13)),"Number out of range error","Valid Scores entered")) -> Valid Scores entered | K6: =IF(E6="","",IF((E6*13>G6),"Error in submitting Games Won or Points Home","OK")) -> OK | L6: =IF(E6="","",IF((F6*13>H6),"Error in submitting Games Won or Points Away","OK")) -> OK
A7: =Template!B18 -> 13.06.2022 | B7: =B6+1 -> 3 | C7: Home | D7: =Template!H18 -> Old Bulls Head | E7: 0 | F7: 5 | G7: 37 | H7: 65 | I7: 0 | J7: Valid Scores entered | K7: OK | L7: OK
A8: =Template!B19 -> 20.06.2022 | B8: 4 | C8: Away | D8: =Template!G19 -> Bye | E8: =INDIRECT(CONCATENATE("'",$D8,"'!$F8")) ->  | F8: =IF(E8="","",5-E8) ->  | G8: =INDIRECT(CONCATENATE("'",$D8,"'!H8")) -> 0 | H8: =INDIRECT(CONCATENATE("'",$D8,"'!G8")) -> 0
A9: =Template!B20 -> 27.06.2022 | B9: 5 | C9: Home | D9: =Template!H20 -> Plough | E9: 2 | F9: 3 | G9: 47 | H9: 50 | I9: 0 | J9: Valid Scores entered | K9: OK | L9: OK
A10: =Template!B21 -> 04.07.2022 | B10: 6 | C10: Home | D10: =Template!D21 -> Star | E10: 0 | F10: 5 | G10: 27 | H10: 65 | I10: 0 | J10: Valid Scores entered | K10: OK | L10: OK
A11: =Template!B22 -> 11.07.2022 | B11: 7 | C11: Away | D11: =Template!G22 -> Farmers Boy | E11: =INDIRECT(CONCATENATE("'",$D11,"'!$F11")) -> 1 | F11: 4 | G11: =INDIRECT(CONCATENATE("'",$D11,"'!H11")) -> 34 | H11: =INDIRECT(CONCATENATE("'",$D11,"'!G11")) -> 64 | I11: 0 | J11: Valid Scores entered | K11: OK | L11: OK
A12: =Template!B23 -> 18.07.2022 | B12: 8 | C12: Away | D12: =Template!G23 -> Old Bulls Head | E12: =INDIRECT(CONCATENATE("'",$D12,"'!$F12")) -> 0 | F12: =IF(E12="","",5-E12) -> 5 | G12: =INDIRECT(CONCATENATE("'",$D12,"'!H12")) -> 25 | H12: =INDIRECT(CONCATENATE("'",$D12,"'!G12")) -> 65 | I12: 0 | J12: Valid Scores entered | K12: OK | L12: OK
A13: =Template!B24 -> 25.07.2022 | B13: 9 | C13: Home | D13: =Template!H24 -> Bye
A14: =Template!B25 -> 01.08.2022 | B14: 10 | C14: Away | D14: =Template!G25 -> Plough | E14: =INDIRECT(CONCATENATE("'",$D14,"'!$F14")) ->  | G14: =INDIRECT(CONCATENATE("'",$D14,"'!H14")) -> 0 | H14: =INDIRECT(CONCATENATE("'",$D14,"'!G14")) -> 0
A15: =Template!B26 -> 08.08.2022 | B15: 11 | C15: Away | D15: Star | E15: =INDIRECT(CONCATENATE("'",$D15,"'!$F15")) -> 1 | F15: 4 | G15: =INDIRECT(CONCATENATE("'",$D15,"'!H15")) -> 21 | H15: =INDIRECT(CONCATENATE("'",$D15,"'!G15")) -> 58 | I15: 0 | J15: Valid Scores entered | K15: OK | L15: OK
A16: =Template!B27 -> 15.08.2022 | B16: 12 | C16: Home | D16: Farmers Boy | E16: 2 | F16: 3 | G16: 57 | H16: 50 | I16: 0 | J16: Valid Scores entered | K16: OK | L16: OK
A17: =Template!B28 -> 22.08.2022 | B17: 13 | C17: Home | D17: Old Bulls Head | E17: 1 | F17: 4 | G17: 33 | H17: 62 | I17: 0 | J17: Valid Scores entered | K17: OK | L17: OK
A18: =Template!B29 -> 05.09.2022 | B18: 14 | C18: Away | D18: Bye | E18: =INDIRECT(CONCATENATE("'",$D18,"'!$F18")) ->  | F18: =IF(E18="","",5-E18) ->  | G18: =INDIRECT(CONCATENATE("'",$D18,"'!H18")) -> 0 | H18: =INDIRECT(CONCATENATE("'",$D18,"'!G18")) -> 0
A19: =Template!B30 -> 12.09.2022 | B19: 15 | C19: Home | D19: Plough | E19: 3 | F19: 2 | G19: 49 | H19: 48 | I19: 1 | J19: Valid Scores entered | K19: OK | L19: OK
C23: =CONCATENATE("Home Games:",COUNTIF(C5:C22,"Home")," Away Games:",COUNTIF(C5:C22,"Away")) -> Home Games:8 Away Games:7

Sheet Template
A1: Team Number | B1: Team Name | C1: Buddy Team
A2: 1 | B2: Star | C2: =B5 -> Plough
A3: 2 | B3: Bye | C3: =B6 -> Old Bulls Head
A4: 3 | B4: Farmers Boy | C4: =B7 -> Goat | F4: The yellow box names are the controls for the spreadsheet. The tab names should match the team names specified here exactly
A5: 4 | B5: Plough | C5: =B2 -> Star
A6: 5 | B6: Old Bulls Head | C6: =B3 -> Bye
A7: 6 | B7: Goat | C7: =B4 -> Farmers Boy
A10: Bank Holidays: | B10: 29 August (between weeks 13 and 14)
A11: Catchup weeks: | B11: 19 September (post season) | D11: 26 September (post season
A14: League weeks | C14: Match 1 | E14: Match 2 | G14: Match 3
A15: Week | B15: Date | C15: Home | D15: Away | E15: Home | F15: Away | G15: Home | H15: Away
A16: 1 | B16: 30.05.2022 | C16: =B2 -> Star | D16: =B7 -> Goat | E16: =B3 -> Bye | F16: =B6 -> Old Bulls Head | G16: =B4 -> Farmers Boy | H16: =B5 -> Plough
A17: 2 | B17: 06.06.2022 | C17: =B6 -> Old Bulls Head | D17: =B2 -> Star | E17: =B5 -> Plough | F17: =B3 -> Bye | G17: =B7 -> Goat | H17: =B4 -> Farmers Boy
A18: 3 | B18: 13.06.2022 | C18: =B2 -> Star | D18: =B5 -> Plough | E18: =B3 -> Bye | F18: =B4 -> Farmers Boy | G18: =B7 -> Goat | H18: =B6 -> Old Bulls Head
A19: 4 | B19: 20.06.2022 | C19: =B4 -> Farmers Boy | D19: =B2 -> Star | E19: =B5 -> Plough | F19: =B6 -> Old Bulls Head | G19: =B3 -> Bye | H19: =B7 -> Goat
A20: 5 | B20: 27.06.2022 | C20: =B2 -> Star | D20: =B3 -> Bye | E20: =B6 -> Old Bulls Head | F20: =B4 -> Farmers Boy | G20: =B7 -> Goat | H20: =B5 -> Plough
A21: 6 | B21: 04.07.2022 | C21: =B7 -> Goat | D21: =B2 -> Star | E21: =B6 -> Old Bulls Head | F21: =B3 -> Bye | G21: =B5 -> Plough | H21: =B4 -> Farmers Boy
A22: 7 | B22: 11.07.2022 | C22: =B2 -> Star | D22: =B6 -> Old Bulls Head | E22: =B3 -> Bye | F22: =B5 -> Plough | G22: =B4 -> Farmers Boy | H22: =B7 -> Goat
A23: 8 | B23: 18.07.2022 | C23: =B5 -> Plough | D23: =B2 -> Star | E23: =B4 -> Farmers Boy | F23: =B3 -> Bye | G23: =B6 -> Old Bulls Head | H23: =B7 -> Goat
A24: 9 | B24: 25.07.2022 | C24: =B2 -> Star | D24: =B4 -> Farmers Boy | E24: =B6 -> Old Bulls Head | F24: =B5 -> Plough | G24: =B7 -> Goat | H24: =B3 -> Bye
A25: 10 | B25: 01.08.2022 | C25: =B3 -> Bye | D25: =B2 -> Star | E25: =B4 -> Farmers Boy | F25: =B6 -> Old Bulls Head | G25: =B5 -> Plough | H25: =B7 -> Goat
A26: 11 | B26: 08.08.2022 | C26: Star | D26: Goat | E26: Bye | F26: Old Bulls Head | G26: Farmers Boy | H26: Plough
A27: 12 | B27: 15.08.2022 | C27: Old Bulls Head | D27: Star | E27: Plough | F27: Bye | G27: Goat | H27: Farmers Boy
A28: 13 | B28: 22.08.2022 | C28: Star | D28: Plough | E28: Bye | F28: Farmers Boy | G28: Goat | H28: Old Bulls Head
A29: 14 | B29: 05.09.2022 | C29: Farmers Boy | D29: Star | E29: Plough | F29: Old Bulls Head | G29: Bye | H29: Goat
A30: 15 | B30: 12.09.2022 | C30: Star | D30: Bye | E30: Old Bulls Head | F30: Farmers Boy | G30: Goat | H30: Plough
A31: 16
A32: 17
A33: 18
A34: CATCHUP | B34: 19.09.2022
A35: CATCHUP | B35: 26.09.2022
A36: ALL GAMES PLAYED BY | B36: 03.10.2022
